{"text_format":"1","workbook":"xlsx","n_sheets":3,"sheets":["List1","List2","List3"],"not_rendered":{"charts":0,"images":0,"macros":0,"external_links":2,"defined_names":0,"comments":0,"pivot_tables":0},"unopened":[],"bounds":{"document_bytes":16777216,"sheet_cells":100000,"rows_first":2000,"rows_last":500,"rows_between":2000,"halvings":0,"cell_chars":16384,"cell_head_chars":4096},"cells_cut":0,"cells_raw":0,"read":"whole","date_system":"1900"}

{"sheet":"List1","index":0,"n_rows":86,"n_cols":10,"rows_kept":86,"cut":false,"hidden":false,"merged":[]}
[]
[]
["Obec , IČ: Náklo, 00299251"]
[]
["Rozpočtové opatření č. 6 - červen 2022 "]
[]
["V souladu s ustanovením § 16 zákona č. 250/2000 Sb., o rozpočtových pravidlech územních rozpočtů dojde k rozpočtovému"]
["opatření v případě změn rozpočtových prostředků na závazných ukazatelích."]
[]
["Rozpočtové opatření č. 6/2022 (předloženo na ZO 6. 6. 2022) a doplněno při jednání na ZO"]
[]
["PŘÍJMY"]
["PAR","POL","UZ","PARAGRAF","popis","Rozpočet na rok 2022","Rozpočet po změnách","změna ROZP","ROZP po ZMĚNĚ","POZNÁMKA"]
[null,4111,98043,null,"Neinvestiční přijaté transf.z všeob.pokl.správy SR",0,0,92291.69,{"$f":"H14+G14","v":92291.69},"jednorázový nenávratný neúčelový příspěvek ze státního rozpočtu"]
[0,4112,null,null,"Neinv.př.transfery ze SR v rámci souhr.dot.vztahu",472900,472900,13100,486000,"výše příspěvku na výkon státní správy na rok 2022"]
[null,4116,null,null,"Ostatní neinv. Přijaté tranfery ze SR",0,844745.69,243550,1088295.69,"výsadba stromů"]
[null,1345,null,null,"Př. z poplatku za obecní systém odpad.hosp. a příj. ",480000,480000,120000,600000,"komunální odpad"]
[null,1342,null,null,"Příjem poplatku z pobytu",10000,10000,13845,23845,"poplatek z pobytu"]
[null,1381,null,null,"Př.z daně z hazard.her s výj.dílčí daně z tech.her",100000,100000,9055.82,109055.82,"daně z hazardních her"]
[null,null,null,"bez ODPA",null,30550319.699999999,31553514.219999999,{"$f":"H18+H17+H16+H15+H14+H19","v":491842.51},32045356.73]
[3113,2229,null,null,"Ostatní přijaté vratky transferů a podobné příjmy",0,{"$f":"F21","v":0},110010,{"$f":"H21","v":110010},"Vratka ZŠ  a MŠ Náklo - Šablony č. 2"]
[3113,null,null,"Základní školy",null,55000,55000,{"$f":"H21","v":110010},{"$f":"H22+G22","v":165010}]
[3639,2132,null,null,"Přijem z pronájmu nebo pachtu ost. nemov.věcí",0,0,4600,{"$f":"H23+G23","v":4600},"pronájem sálu KD Mezice"]
[3639,null,null,"Komunální služby a územní rozvoj jinde nezařazené",null,125000,125000,{"$f":"H23","v":4600},{"$f":"H24+G24","v":129600}]
[6171,2324,null,null,"Přijaté neinvestiční příspěvky a náhrady",75000,75000,{"$f":"+H26+H27+H28+H29+H30+H31","v":448374},{"$f":"H25+F25","v":523374},"Educol Navrátilová, ÚP Svoboda, ÚP Dostálová, vratka"]
[null,null,null,null,null,76000,76000,{"$f":"12729+48750+76215","v":137694},{"$f":"H26+F26","v":213694},"Vratka"]
[null,null,null,null,null,null,null,182478,null,"Navrátilová 85% Educol UZ 13013 Nástroj 104 Zdroj 5"]
[null,null,null,null,null,null,null,32202,null,"Navrátilová 15% Educol UZ 13013 Nástroj 104 Zdroj 1"]
[null,null,null,null,null,null,null,48000,null,"Svoboda UZ 13101 - ÚP"]
[null,null,null,null,null,null,null,39542.400000000001,null,"Dostálová ÚP - UZ 13013 Nástroj 104 Zdroj 5 - 82,38%"]
[null,null,null,null,null,null,null,8457.6,null,"Dostálová ÚP - UZ 13013 Nástroj 104 Zdroj 1 - 17,62%"]
[6171,null,null,"Činnost místní samosprávy",null,76000,176000,{"$f":"H25","v":448374},{"$f":"H32+G32","v":624374}]
[null,null,null,"Celkem ZMĚNY v PŘÍJMECH",null,33700619.700000003,{"$f":"[1]List1!$G$15","v":34803814.220000006},{"$f":"+H32+H22+H20+H24","v":1054826.51},{"$f":"H33+G33","v":35858640.730000004}]
[]
[null,null,null,"Celkem PŘÍJMY",null,{"$f":"F33","v":33700619.700000003},{"$f":"G33","v":34803814.220000006},{"$f":"H33","v":1054826.51},{"$f":"G35+H35","v":35858640.730000004}]
[]
["VÝDAJE:"]
["PAR","POL","UZ","PARAGRAF","popis","Rozpočet na rok 2022","Rozpočet po změnách","změna ROZP","ROZP po ZMĚNĚ","POZNÁMKA"]
[6171,5169,null,null,"Nákup ostatních služeb",1500000,1500000,{"$f":"16763.98+(4*16764.37)+299000","v":382821.45999999996},{"$f":"H39+G39","v":1882821.46},"Nájemní smlouva ČEZ"]
[6171,null,null,"Činnost místní samosprávy",null,5427999,9246630,{"$f":"H39","v":382821.45999999996},{"$f":"H40+G40","v":9629451.4600000009}]
[2219,5171,null,null,"opravy a udržování",50000,331706.55,900000,1231706.55,"oprava cesty Náklo - Lhota nad Moravou - pojistná událost"]
[2219,null,null,"Ostatní záležitosti pozemních komunikací",null,247510,621417.31000000006,{"$f":"H41","v":900000},1521417.31]
[2321,5139,null,null,"Nákup materiálu jinde nezařazený",300000,41305.450000000012,258694.55,300000]
[2321,null,null,"Odvádění a čištění odpadních vod",null,1162500,{"$f":"F44+E44","v":1162500},{"$f":"H43","v":258694.55},1421194.55]
[3639,6121,null,"Stavby",null,1950000,{"$f":"[1]List1!$I$27","v":1693635.1099999999},108433.84,{"$f":"H45+G45","v":1802068.95}]
[3639,6130,null,"Pozemky",null,54935.7,1283923.3400000001,{"$f":"-1175489.5-108433.84","v":-1283923.3400000001},0,"oprava cesty Náklo - Lhota nad Moravou - pojistná událost, Sokol"]
[3639,null,null,"Komunální služby a územní rozvoj jinde nazařazené",null,7667935.7000000002,8925489.5399999991,{"$f":"H46+H45","v":-1175489.5},7750000.0399999991]
[3429,6322,null,null,"Investiční transfery spolkům",320000,320000,250000,570000,"Sokol"]
[3429,null,null,"Ostatní zájmová činnost a rekreace",null,5925352,5930352,{"$f":"H48","v":250000},6180352]
[5512,6121,null,null,"Stavby",0,200000,200000,400000,"Kiosek hasiči Mezice"]
[5512,null,null,"Požární ochrana - dobrovolná část",null,147000,{"$f":"[1]List1!$I$33","v":375542.87},{"$f":"H50","v":200000},575542.87]
[3511,6313,null,null,"Investiční transfery nefinančním podnikatelským subjektům - právnickým osobám",0,0,238800,238800,"investiční dotace s vypořádáním - MUDr. Adamcová - AMIMED s.r.o."]
[3511,null,null,"Činnost ordinací praktických lékařů",null,0,0,{"$f":"H52","v":238800},238800]
[null,null,null,"Celkem ZMĚNY ve VÝDAJÍCH",null,33700619.700000003,{"$f":"[1]List1!$G$37","v":38512723.690000005},{"$f":"+H42+H40+H44+H47+H49+H53+H51","v":1054826.51},{"$f":"H54+G54","v":39567550.200000003}]
[]
[null,null,null,"Celkem VÝDAJE",null,null,{"$f":"G54","v":38512723.690000005},{"$f":"H54","v":1054826.51},{"$f":"I54","v":39567550.200000003}]
[]
[null,null,null,"Celkem 5XXX"]
[null,null,null,"Celkem 6XXX"]
[]
[]
["FINANCOVÁNÍ"]
["PAR","POL","UZ","PARAGRAF","popis","Rozpočet na rok 2022","Rozpočet po změnách","změna ROZP","ROZP po ZMĚNĚ","POZNÁMKA"]
[]
[]
[null,null,null,"Celkem ZMĚNY ve FINANCOVÁNÍ:",null,null,null,null,{"$f":"I64","v":0}]
[]
[]
[null,null,null,"REKAPITULACE:"]
[]
[null,null,null,"Celkem PŘÍJMY",null,null,{"$f":"[1]List1!I54","v":34803814.220000006},{"$f":"H33","v":1054826.51},{"$f":"H71+G71","v":35858640.730000004}]
[null,null,null,"Celkem FINANCOVÁNÍ:",null,null,{"$f":"[1]List1!I55","v":3708909.4699999997},{"$f":"I66","v":0},{"$f":"H72+G72","v":3708909.4699999997}]
[null,null,null,"Celkem PŘÍJMY+FINANCOVÁNÍ",null,null,{"$f":"[1]List1!I56","v":38512723.690000005},{"$f":"+H72+H71","v":1054826.51},{"$f":"I72+I71","v":39567550.200000003}]
[]
[null,null,null,"Celkem VÝDAJE",null,null,{"$f":"[1]List1!I58","v":38512723.690000005},{"$f":"H56","v":1054826.51},{"$f":"I56","v":39567550.200000003}]
[]
[]
["Důvodová zpráva k rozpočtovému opatření č. 6 /2022"]
[]
["Přesun prostředků v rámci nezajištěného výdaje je Čerpán z rezervy obce."]
[]
["Správce rozpočtu : "]
[]
["Starosta obce : "]
[]
["ZO schvaluje dne 6. 6. 2022 rozpočtové opatření č. 6/2022 v předloženém rozsahu."]

{"sheet":"List2","index":1,"n_rows":24,"n_cols":1,"rows_kept":24,"cut":false,"hidden":false,"merged":[]}
["TEXTY PRO FORMULÁŘ ÚPRAVA ROZPOČTU - na začátek kopírují se řádky 3-13"]
["poznámka: Texty, které budou přenášeny z tohoto formuláře, musí být zapsány pouze ve sloupci A"]
[]
[]
["Obec , IČ: Náklo, 00299251"]
[]
["Rozpočtové změny roku 2019 -duben"]
[]
["V souladu s ustanovením § 16 zákona č. 250/2000 Sb., o rozpočtových pravidlech územních rozpočtů dojde k rozpočtovému"]
["opatření v případě změn rozpočtových prostředků na závazných ukazatelích."]
[]
["Rozpočtové opatření č. 1/2019 (předloženo na ZQ 6. 6. 2018) a doplněno při jednání na ZO"]
[]
["TEXTY PRO FORMULÁŘ ÚPRAVA ROZPOČTU - na začátek kopírují se řádky 16-32"]
[]
["Důvodová zpráva k rozpočtovému opatření č. 1/2019"]
[]
["Přesun prostředků v rámci nezajištěného výdaje je Čerpán z rezervy obce."]
[]
["Správce rozpočtu : "]
[]
["Starosta obce : "]
[]
["ZO schvaluje dne 6. 6. 2018 rozpočtové opatření č. 3/2018 v předloženém rozsahu Usnesením č. 1038/1860"]

{"sheet":"List3","index":2,"n_rows":0,"n_cols":0,"rows_kept":0,"cut":false,"hidden":false,"merged":[]}